bitfinex-derivatives/quotes_BTCF0:USTF0_20241117
["timestamp","ask_amount","ask_price","bid_price","bid_amount"]
[1731811532355,0.3608,89893.0,89891.0,0.0317]
[1731811533553,0.055591,89893.0,89891.0,0.0317]
[1731811534143,0.055596,89885.0,89884.0,0.00011391]
[1731811538357,0.11864654,89902.0,89884.0,0.00011391]
[1731811538358,0.11148,89902.0,89884.0,0.00011391]
[1731811538659,0.41513923,89899.0,89884.0,0.00011391]
[1731811538854,0.055595,89886.0,89884.0,0.00011391]
[1731811542757,0.11094106,89886.0,89884.0,0.00011391]
[1731811548546,0.055595,89886.0,89884.0,0.00011391]
[1731811549943,0.056595,89886.0,89884.0,0.00711391]
[1731811550150,0.001,89886.0,89884.0,0.00711391]
[1731811550362,0.001,89886.0,89884.0,0.06270991]
[1731811550548,0.055594,89887.0,89884.0,0.25480634]
[1731811550747,0.05497739,89892.0,89885.0,0.19909643]
[1731811550748,0.055595,89886.0,89885.0,0.19909643]
[1731811550942,0.055591,89892.0,89885.0,0.055595]
[1731811551152,0.055591,89892.0,89887.0,0.055594]
[1731811551346,0.05533338,89898.0,89889.0,0.055593]
[1731811551543,0.05533338,89898.0,89890.0,0.0309]
[1731811551746,0.055591,89893.0,89890.0,0.0309]
[1731811551942,0.055591,89892.0,89890.0,0.0309]
[1731811554451,0.055591,89892.0,89890.0,0.22999643]
[1731811554648,0.055591,89892.0,89891.0,0.19909643]
[1731811555051,0.055591,89892.0,89890.0,0.22999643]
[1731811555249,0.055591,89892.0,89890.0,0.0309]
[1731811555843,0.055591,89892.0,89890.0,0.22999643]
[1731811556043,0.055591,89892.0,89891.0,0.19909643]
[1731811556260,0.055591,89892.0,89891.0,0.21315214]
[1731811556452,0.055591,89892.0,89891.0,0.01338315]
[1731811556854,0.055591,89892.0,89891.0,0.2131636]
[1731811557157,0.055591,89892.0,89891.0,0.01338315]
[1731811557350,0.055591,89892.0,89891.0,0.21316362]
[1731811557554,0.055591,89892.0,89891.0,0.01338315]
[1731811557950,0.055591,89892.0,89891.0,0.21317773]
[1731811558549,0.055591,89892.0,89891.0,0.01338315]
[1731811559461,0.00056001,89899.0,89898.0,0.055587]
[1731811559663,0.00166895,89903.0,89902.0,0.055585]
[1731811559856,0.05730491,89903.0,89902.0,0.26875911]
[1731811560162,0.05730491,89903.0,89902.0,0.06896815]
[1731811560465,0.05730491,89903.0,89902.0,0.01338315]
[1731811560851,0.05730491,89903.0,89902.0,0.31297233]
[1731811561255,0.05730491,89903.0,89902.0,0.04658315]
[1731811561453,0.00166895,89903.0,89902.0,0.04658315]
[1731811561653,0.00166895,89903.0,89902.0,0.0647]
[1731811561957,0.00166895,89903.0,89902.0,0.17593161]
[1731811564361,0.00166895,89903.0,89890.0,0.086492]
[1731811564362,0.055585,89902.0,89901.0,0.19964272]
[1731811564563,0.17423154,89902.0,89900.0,0.19964272]
[1731811564756,0.055591,89893.0,89891.0,0.19964272]
[1731811565071,0.3608,89901.0,89892.0,0.0131502]
[1731811565462,0.3608,89901.0,89889.0,0.19964272]
[1731811565463,0.3608,89901.0,89893.0,0.0131502]
[1731811565770,0.055592,89891.0,89890.0,0.19964272]
[1731811565956,0.055592,89891.0,89890.0,0.21282033]
[1731811567064,0.11864654,89894.0,89886.0,0.19966313]
[1731811567266,0.055595,89886.0,89884.0,0.19977704]
[1731811567960,0.055595,89886.0,89884.0,0.00011391]
[1731811572959,0.0639,89885.0,89884.0,0.00011391]
[1731811573563,0.55630126,89885.0,89884.0,1.92e-06]
[1731811573763,0.53582,89885.0,89884.0,1.92e-06]
[1731811574154,0.70033022,89885.0,89884.0,1.92e-06]
[1731811574353,0.53582,89885.0,89884.0,1.92e-06]
[1731811574558,0.70033022,89885.0,89858.0,0.26638918]
[1731811574759,0.416404,89871.0,89857.0,0.26638918]
[1731811574971,0.055612,89858.0,89856.0,0.26638918]
[1731811575265,0.055612,89858.0,89849.0,0.3608]
[1731811575266,0.3608,89861.0,89851.0,0.26638918]
[1731811575470,0.3608,89861.0,89849.0,0.62718918]
[1731811575471,0.055617,89850.0,89849.0,0.62718918]
[1731811575877,0.055617,89850.0,89849.0,0.62729789]
[1731811576071,0.055614,89855.0,89849.0,0.36090871]
[1731811576267,0.00166959,89868.0,89849.0,0.36090871]
[1731811576268,0.00166959,89868.0,89854.0,0.26610828]
[1731811576459,0.00166959,89868.0,89863.0,0.19952872]
[1731811576658,0.055608,89866.0,89865.0,0.19952872]
[1731811576868,0.055608,89866.0,89865.0,0.01321674]
[1731811577272,0.00166959,89868.0,89859.0,0.19952872]
[1731811577273,0.055611,89860.0,89859.0,0.19952872]
[1731811577455,0.055611,89860.0,89859.0,0.01321474]
[1731811578070,0.055611,89860.0,89859.0,0.02631577]
[1731811578278,0.055611,89860.0,89859.0,0.01310103]
[1731811579362,0.00166959,89868.0,89859.0,0.01314713]
[1731811579569,0.055612,89859.0,89855.0,0.19952872]
[1731811579758,0.055612,89858.0,89856.0,0.19952872]
[1731811580163,0.055612,89858.0,89851.0,0.0327]
[1731811580164,0.3608,89863.0,89855.0,0.19952872]
[1731811580370,0.055615,89853.0,89852.0,0.19952872]
[1731811580574,0.055615,89853.0,89851.0,0.23222872]
[1731811580872,0.055615,89853.0,89851.0,0.0327]
[1731811581267,0.055615,89853.0,89852.0,0.01316186]
[1731811581573,0.055615,89853.0,89851.0,0.0327]
[1731811582471,0.055615,89853.0,89852.0,0.31058328]
[1731811582672,0.055615,89853.0,89852.0,0.11129412]
[1731811583074,0.00166959,89868.0,89852.0,0.44517412]
[1731811583379,0.00166959,89868.0,89857.0,0.055613]
[1731811583577,0.055611,89860.0,89857.0,0.055613]
[1731811584095,0.00166959,89868.0,89858.0,0.1112935]
[1731811584270,0.05561,89862.0,89859.0,0.055611]
[1731811584666,0.05561,89862.0,89860.0,0.18008821]
[1731811584968,0.00166959,89868.0,89866.0,0.055607]
[1731811584969,0.05727659,89868.0,89866.0,0.055607]
[1731811585573,0.05727659,89868.0,89861.0,0.11128298]
[1731811585574,0.055608,89865.0,89861.0,0.05561]
[1731811585774,0.055608,89865.0,89863.0,0.055609]
[1731811586083,0.00166959,89868.0,89866.0,0.055607]
[1731811586379,0.00166959,89868.0,89867.0,0.0626]
[1731811586579,0.00166959,89868.0,89867.0,0.07579831]
[1731811586765,0.00166959,89868.0,89867.0,0.18707757]
[1731811587384,0.055606,89869.0,89860.0,0.26610828]
[1731811587570,0.3608,89864.0,89853.0,0.19922256]
[1731811587774,0.3608,89864.0,89853.0,0.05533896]
[1731811587775,0.055615,89854.0,89853.0,0.05533896]
[1731811588377,0.0328,89863.0,89849.0,0.00010871]
[1731811588378,0.055616,89852.0,89849.0,0.00010871]
[1731811593584,0.055617,89850.0,89849.0,0.00010871]
[1731811593971,0.055617,89850.0,89849.0,7.1e-07]
[1731811594179,0.53506354,89850.0,89849.0,7.1e-07]
[1731811594370,0.416417,89850.0,89849.0,7.1e-07]
[1731811594566,0.54853132,89850.0,89849.0,7.1e-07]
[1731811594768,0.416417,89850.0,89849.0,7.1e-07]
[1731811595175,0.4165244,89850.0,89849.0,7.1e-07]
[1731811598673,0.0557244,89850.0,89849.0,7.1e-07]
[1731811599077,0.4165244,89850.0,89849.0,7.1e-07]
[1731811601787,0.4497244,89850.0,89849.0,7.1e-07]
[1731811602382,0.58183872,89850.0,89849.0,7.1e-07]
[1731811602792,0.4497244,89850.0,89849.0,7.1e-07]
[1731811605088,0.90225094,89850.0,89849.0,7.1e-07]
[1731811605886,0.90225094,89850.0,89825.0,0.0318]
[1731811605887,0.05563,89829.0,89825.0,0.0318]
[1731811606092,0.055632,89826.0,89825.0,0.0318]
[1731811606787,0.055632,89826.0,89825.0,9.369e-05]
[1731811607277,0.389632,89826.0,89825.0,6.9e-07]
[1731811607480,0.055637,89818.0,89817.0,0.00250993]
[1731811607680,0.53508354,89818.0,89817.0,0.00084]
[1731811608483,0.53508354,89818.0,89817.0,0.00090645]
[1731811610490,0.53508354,89818.0,89817.0,6.645e-05]
[1731811614595,0.64592354,89818.0,89817.0,6.645e-05]
[1731811615397,0.53508354,89818.0,89817.0,6.645e-05]
[1731811615698,0.055637,89818.0,89817.0,6.645e-05]
[1731811615894,0.055635,89821.0,89817.0,0.11140332]
[1731811616793,0.3608,89831.0,89817.0,0.11140332]
[1731811617203,0.05563,89830.0,89822.0,0.055634]
[1731811617506,0.055631,89828.0,89818.0,0.11084]
[1731811617690,0.11864654,89835.0,89818.0,0.11084]
[1731811617896,0.05689114,89837.0,89818.0,0.11084]
[1731811617897,0.11864654,89827.0,89818.0,0.22216882]
[1731811618095,0.055636,89820.0,89818.0,0.22216882]
[1731811618296,0.11864654,89827.0,89817.0,6.645e-05]
[1731811618297,0.055637,89818.0,89817.0,6.645e-05]
[1731811620509,0.055634,89823.0,89819.0,0.055636]
[1731811620806,0.11864654,89835.0,89817.0,6.645e-05]
[1731811620807,0.41510081,89831.0,89817.0,6.645e-05]
[1731811621008,0.3608,89831.0,89817.0,6.645e-05]
[1731811621203,0.055637,89818.0,89817.0,6.645e-05]
[1731811621914,0.3608,89831.0,89819.0,0.055636]
[1731811622115,0.055634,89823.0,89819.0,0.055636]
[1731811622298,0.3608,89831.0,89817.0,6.645e-05]
[1731811622495,0.055625,89838.0,89827.0,0.055631]
[1731811622811,0.055627,89834.0,89832.0,0.055628]
[1731811623000,0.055627,89834.0,89833.0,0.031]
[1731811623414,0.0560938,89844.0,89833.0,0.031]
[1731811623415,0.00167054,89844.0,89833.0,0.031]
[1731811623806,0.055622,89843.0,89834.0,0.11131704]
[1731811623995,0.00167054,89844.0,89840.0,0.3608]
[1731811624197,0.055619,89848.0,89840.0,0.3608]
[1731811624411,0.055619,89848.0,89844.0,0.055621]
[1731811624712,0.055619,89848.0,89845.0,0.05562]
[1731811625008,0.05562,89847.0,89845.0,0.05562]
[1731811625210,0.0001074,89850.0,89849.0,0.055618]
[1731811625411,0.0001074,89850.0,89849.0,0.416418]
[1731811625718,0.055608,89866.0,89849.0,0.69468]
[1731811625897,0.00167,89872.0,89850.0,0.12355592]
[1731811626100,0.00167,89872.0,89849.0,0.47210156]
[1731811626101,0.055616,89853.0,89851.0,0.12355592]
[1731811626419,0.055616,89853.0,89852.0,0.0324]
[1731811626595,0.055616,89853.0,89852.0,0.14368298]
[1731811627206,0.11864654,89868.0,89852.0,0.14368298]
[1731811627207,0.055611,89860.0,89852.0,0.14368298]
[1731811627802,0.11864654,89868.0,89852.0,0.14368298]
[1731811627803,0.055612,89858.0,89852.0,0.14368298]
[1731811628117,0.055615,89854.0,89852.0,0.14368298]
[1731811630399,0.055615,89854.0,89852.0,0.0324]
[1731811630604,0.055616,89852.0,89847.0,0.0333]
[1731811630915,0.055616,89852.0,89848.0,0.11129288]
[1731811631114,0.14104,89871.0,89848.0,0.11129288]
[1731811631115,0.3608,89854.0,89848.0,0.11129288]
[1731811631301,0.055619,89847.0,89838.0,0.055625]
[1731811631796,0.11864654,89852.0,89842.0,0.1112966]
[1731811631997,0.11864654,89852.0,89835.0,0.0311]
[1731811631998,0.055625,89837.0,89835.0,0.0311]
[1731811637119,0.055628,89832.0,89831.0,0.0016696]
[1731811641326,0.41754621,89844.0,89831.0,0.0016696]
[1731811641629,0.055619,89848.0,89843.0,0.11864654]
[1731811641818,0.0308,89864.0,89847.0,0.3608]
[1731811642016,0.0308,89864.0,89843.0,0.11864654]
[1731811642017,0.055614,89856.0,89848.0,0.3608]
[1731811642218,0.0641,89864.0,89853.0,0.055615]
[1731811642219,0.055614,89855.0,89853.0,0.055615]
[1731811642729,0.055614,89855.0,89854.0,0.11129412]
[1731811643133,0.055614,89855.0,89854.0,0.12500853]
[1731811643519,0.055614,89855.0,89854.0,0.11129412]
[1731811644327,0.055612,89859.0,89857.0,0.055613]
[1731811644713,0.0641,89864.0,89859.0,0.055611]
[1731811645326,0.055609,89863.0,89859.0,0.055611]
[1731811647226,0.055607,89868.0,89860.0,0.11128298]
[1731811647430,0.055607,89868.0,89865.0,0.055608]
[1731811647620,0.055607,89868.0,89866.0,0.01370386]
[1731811647822,0.055607,89868.0,89865.0,0.055608]
[1731811648025,0.055607,89868.0,89867.0,0.055607]
[1731811648231,0.00167,89872.0,89868.0,0.055606]
[1731811648732,0.00167,89872.0,89869.0,0.055605]
[1731811649131,0.00167,89872.0,89870.0,0.06931449]
[1731811649317,0.00167,89872.0,89871.0,0.01371049]
[1731811649924,0.00167,89872.0,89870.0,0.055604]
[1731811650229,0.00167,89872.0,89871.0,0.11127121]
[1731811651540,0.0316,89887.0,89872.0,0.055604]
[1731811651726,0.0316,89887.0,89872.0,0.416404]
[1731811651926,0.085695,89886.0,89872.0,0.43005113]
[1731811652228,0.0301,89886.0,89872.0,0.52767397]
[1731811652431,0.055596,89885.0,89872.0,0.52767397]
[1731811652739,0.0316,89887.0,89872.0,0.80742817]
[1731811652740,0.055597,89883.0,89872.0,0.80742817]
[1731811652939,0.055597,89883.0,89872.0,0.52767397]
[1731811653528,0.055597,89883.0,89872.0,0.63771397]
[1731811653942,0.0316,89887.0,89872.0,0.63771397]
[1731811653943,0.055603,89874.0,89872.0,0.11126997]
[1731811654139,0.47944654,89878.0,89867.0,8.953e-05]
[1731811654329,0.055606,89868.0,89867.0,8.953e-05]
[1731811655445,0.085606,89868.0,89867.0,8.953e-05]
[1731811656439,8.083e-05,89873.0,89867.0,0.230011]
[1731811656630,8.083e-05,89873.0,89871.0,0.055604]
[1731811657235,8.083e-05,89873.0,89872.0,0.11127493]
[1731811657633,8.083e-05,89873.0,89872.0,0.12478537]
[1731811658844,0.00108083,89873.0,89872.0,0.13178537]
[1731811659552,8.083e-05,89873.0,89872.0,0.12478537]
[1731811660134,0.0309,89888.0,89873.0,0.055603]
[1731811660335,0.0309,89888.0,89880.0,0.11864654]
[1731811660735,0.0309,89888.0,89881.0,0.11126874]
[1731811660933,0.3608,89898.0,89891.0,0.055592]
[1731811660934,0.055591,89893.0,89891.0,0.055592]
[1731811661146,0.3608,89898.0,89889.0,0.11864654]
[1731811661349,0.0327,89899.0,89889.0,0.11864654]
[1731811661651,0.0327,89899.0,89896.0,0.055589]
[1731811661840,0.0327,89899.0,89897.0,0.055588]
[1731811663137,0.0327,89899.0,89898.0,0.11123717]
[1731811663947,0.00166933,89904.0,89898.0,0.11123717]
[1731811664253,0.00166933,89904.0,89903.0,0.055584]
[1731811664954,0.00166933,89904.0,89903.0,0.16681746]
[1731811668460,0.00166933,89904.0,89903.0,0.22338493]
[1731811669144,0.00166933,89904.0,89903.0,0.23686593]
[1731811669657,0.0319,89915.0,89908.0,0.055581]
[1731811669956,0.055578,89914.0,89908.0,0.055581]
[1731811670339,0.055578,89914.0,89908.0,0.16681137]
[1731811670744,0.0319,89915.0,89908.0,0.16681137]
[1731811670745,0.055578,89913.0,89908.0,0.16681137]
[1731811671548,0.05558,89910.0,89908.0,0.16681137]
[1731811674956,0.05558,89910.0,89908.0,0.11123037]
[1731811675350,0.055581,89908.0,89906.0,0.11864654]
[1731811675546,0.055581,89908.0,89907.0,0.11122418]
[1731811675947,0.055581,89908.0,89906.0,0.11864654]
[1731811676147,0.055581,89908.0,89907.0,0.11122418]
[1731811676553,0.055581,89908.0,89894.0,0.3608]
[1731811676752,0.055591,89892.0,89883.0,0.22864654]
[1731811676958,0.0332,89891.0,89883.0,0.22864654]
[1731811677150,0.0332,89891.0,89884.0,0.05428984]
[1731811677859,0.0332,89891.0,89890.0,0.00866851]
[1731811678449,0.0332,89891.0,89890.0,0.00166851]
[1731811681578,0.13187168,89907.0,89890.0,0.00166851]
[1731811681749,0.055587,89899.0,89891.0,0.11864654]
[1731811681953,0.13187168,89907.0,89895.0,0.055589]
[1731811682256,0.3608,89901.0,89891.0,0.11864654]
[1731811682564,0.055583,89905.0,89903.0,0.11864654]
[1731811682750,0.055583,89905.0,89903.0,0.00044398]
[1731811683362,0.0631,89908.0,89903.0,0.00044398]
[1731811683561,0.055583,89905.0,89904.0,0.11123965]
[1731811685356,0.055583,89905.0,89904.0,0.1245782]
[1731811685559,0.3608,89906.0,89893.0,0.11864654]
[1731811685863,0.3608,89906.0,89890.0,0.00166851]
[1731811685864,0.055592,89891.0,89890.0,0.00166851]
[1731811686165,0.055592,89891.0,89890.0,0.01508556]
[1731811687162,0.055592,89891.0,89890.0,0.00166851]
[1731811690662,0.18810733,89891.0,89890.0,0.00166851]
[1731811690864,0.13251563,89893.0,89890.0,0.055592]
[1731811691066,0.055589,89895.0,89892.0,0.11864654]
[1731811691379,0.055591,89894.0,89892.0,0.11864654]
[1731811692171,0.0307,89901.0,89893.0,0.11124274]
[1731811692357,0.05559,89895.0,89893.0,0.11124274]
[1731811692556,0.0307,89901.0,89889.0,0.05553642]
[1731811692557,0.055586,89900.0,89889.0,0.05553642]
[1731811692767,0.055594,89888.0,89884.0,0.17424254]
[1731811692974,0.055594,89888.0,89884.0,0.37374319]
[1731811693171,0.055594,89888.0,89885.0,0.18040324]
[1731811693377,0.13251563,89904.0,89891.0,0.055592]
[1731811693562,8.26e-05,89909.0,89907.0,0.055582]
[1731811693877,8.26e-05,89909.0,89908.0,0.52631369]
[1731811694073,8.26e-05,89909.0,89908.0,0.6708651]
[1731811694259,0.0304,89935.0,89926.0,0.05557]
[1731811694577,0.0304,89935.0,89908.0,0.6708651]
[1731811694578,0.05557,89926.0,89925.0,0.055571]
[1731811694958,0.05557,89926.0,89925.0,0.06912068]
[1731811695179,0.05507727,89932.0,89925.0,0.055571]
[1731811695874,0.055569,89928.0,89926.0,0.05557]
[1731811696262,0.055569,89928.0,89922.0,0.11120007]
[1731811696462,0.05557,89926.0,89923.0,0.0135701]
[1731811696663,0.05557,89926.0,89924.0,0.01356985]
[1731811696863,0.05557,89926.0,89924.0,0.055571]
[1731811697073,0.13418399,89931.0,89920.0,0.1112013]
[1731811697074,0.055572,89924.0,89920.0,0.05551108]
[1731811697279,0.055572,89924.0,89921.0,0.01358007]
[1731811697776,0.13418399,89931.0,89922.0,0.01358007]
[1731811697957,0.055568,89929.0,89925.0,0.055571]
[1731811698573,0.00166836,89931.0,89923.0,0.01358007]
[1731811698776,0.00166836,89931.0,89928.0,0.055569]
[1731811701071,0.00166836,89931.0,89919.0,0.1096]
[1731811701072,0.00166836,89931.0,89929.0,0.16676621]
[1731811701376,0.00166836,89931.0,89930.0,0.032]
[1731811701875,0.00166836,89931.0,89930.0,0.14319759]
[1731811702965,0.00166836,89931.0,89930.0,0.15684445]
[1731811703168,0.49331563,89948.0,89930.0,0.15684445]
[1731811703169,0.49331563,89948.0,89946.0,0.055557]
[1731811703372,0.3608,89948.0,89946.0,0.055557]
[1731811704081,0.055557,89947.0,89940.0,0.0314]
[1731811704584,0.055557,89947.0,89941.0,0.16687648]
[1731811705076,0.055559,89944.0,89941.0,0.16687648]
[1731811705467,0.3608,89948.0,89947.0,0.055557]
[1731811706579,0.3608,89948.0,89941.0,0.11878644]
[1731811706777,0.3608,89948.0,89941.0,0.0001399]
[1731811706778,0.055559,89944.0,89941.0,0.0001399]
[1731811706977,0.055559,89944.0,89942.0,0.16673596]
[1731811707179,0.3608,89948.0,89944.0,0.055559]
[1731811707776,0.3608,89948.0,89946.0,0.055558]
[1731811708088,0.0626,89963.0,89941.0,0.0001399]
[1731811708089,0.0016678,89975.0,89947.0,0.37435104]
[1731811708268,0.0016678,89975.0,89974.0,0.416341]
[1731811708685,0.0016678,89975.0,89974.0,0.055541]
[1731811708984,0.0016678,89975.0,89974.0,0.1666836]
[1731811712683,0.0016678,89975.0,89970.0,0.0315]
[1731811712983,0.0016678,89975.0,89974.0,0.1666836]
[1731811713184,0.0016678,89975.0,89974.0,0.055541]
[1731811713379,0.0016678,89975.0,89974.0,0.1666836]
[1731811714277,0.0016678,89975.0,89974.0,0.1111426]
[1731811714677,0.055541,89974.0,89971.0,0.22788654]
[1731811714983,0.055541,89974.0,89971.0,0.10924]
[1731811715183,0.055541,89974.0,89972.0,0.1111426]
[1731811715875,0.055541,89974.0,89961.0,0.1092]
[1731811715876,0.3608,89974.0,89961.0,0.1092]
[1731811716073,0.0623,89973.0,89959.0,0.1092]
[1731811716277,0.0623,89973.0,89965.0,0.11114445]
[1731811716278,0.055546,89966.0,89965.0,0.11114445]
[1731811716485,0.055546,89966.0,89960.0,0.085649]
[1731811716681,0.0623,89973.0,89960.0,0.0301]
[1731811716989,0.0623,89973.0,89961.0,0.11115372]
[1731811717175,0.11783361,89973.0,89957.0,0.1092]
[1731811717376,0.05555,89958.0,89957.0,0.1092]
[1731811717571,0.05555,89958.0,89956.0,0.3608]
[1731811717779,0.05555,89958.0,89957.0,0.11115433]
[1731811718490,0.055552,89956.0,89950.0,0.0312]
[1731811718685,0.055552,89956.0,89952.0,0.1111636]
[1731811718988,0.055552,89956.0,89952.0,0.055554]
[1731811719880,0.055552,89956.0,89953.0,0.11116793]
[1731811720485,0.05486681,89962.0,89953.0,0.11116793]
[1731811720690,0.055553,89954.0,89953.0,0.11116793]
[1731811721079,0.055553,89954.0,89950.0,0.0312]
[1731811721294,0.4231,89973.0,89951.0,0.11116731]
[1731811721492,0.055554,89952.0,89951.0,0.11116731]
[1731811721786,0.055554,89952.0,89951.0,0.13339409]
[1731811723381,0.055554,89952.0,89951.0,0.11116731]
[1731811723586,0.055554,89952.0,89947.0,0.471]
[1731811723587,0.055554,89952.0,89947.0,0.001]
[1731811723893,0.055559,89944.0,89943.0,0.05558131]
[1731811724284,0.05556,89942.0,89941.0,0.0001399]
[1731811724887,0.05556,89942.0,89941.0,0.11132328]
[1731811725284,0.05556,89942.0,89941.0,0.0001399]
[1731811727492,0.11110797,89942.0,89941.0,0.0001399]
[1731811727692,0.11110797,89942.0,89928.0,0.087669]
[1731811727693,0.11110797,89942.0,89940.0,4.393e-05]
[1731811728681,0.11110797,89942.0,89941.0,0.00012976]
[1731811736605,0.44466797,89942.0,89941.0,0.00012976]
[1731811739104,0.11110797,89942.0,89941.0,0.00012976]
[1731811740303,0.05556,89942.0,89941.0,0.00012976]
[1731811740691,0.41636,89942.0,89941.0,0.00012976]
[1731811741497,0.055393,89945.0,89941.0,0.00012976]
[1731811741498,0.055559,89945.0,89941.0,0.00012976]
[1731811742092,0.055559,89945.0,89941.0,0.05569076]
[1731811742298,0.36144,89951.0,89941.0,0.00012976]
[1731811742299,0.3608,89951.0,89941.0,0.00012976]
[1731811742501,0.416355,89951.0,89946.0,0.055558]
[1731811742702,0.055556,89950.0,89947.0,0.031]
[1731811743896,0.10924,89960.0,89947.0,0.086557]
[1731811743897,0.055553,89954.0,89947.0,0.086557]
[1731811744096,0.16604507,89960.0,89947.0,0.086557]
[1731811744298,0.055553,89954.0,89947.0,0.086557]
[1731811744507,0.13251563,89959.0,89947.0,0.086557]
[1731811744811,0.055554,89952.0,89947.0,0.086557]
[1731811745218,0.055555,89951.0,89947.0,0.086557]
[1731811745510,0.13251563,89958.0,89947.0,0.086557]
[1731811745722,0.13251563,89957.0,89947.0,0.086557]
[1731811745920,0.13251563,89958.0,89947.0,0.086557]
[1731811746213,0.055554,89952.0,89947.0,0.086557]
[1731811746904,0.055554,89952.0,89947.0,0.031]
[1731811747310,0.13251563,89956.0,89947.0,0.031]
[1731811747511,0.055555,89951.0,89947.0,0.031]
[1731811747707,0.13251563,89956.0,89947.0,0.031]
[1731811747907,0.055555,89951.0,89947.0,0.031]
[1731811748308,0.055552,89956.0,89949.0,0.055556]
[1731811748520,0.055552,89956.0,89953.0,0.055553]
[1731811749020,0.3608,89958.0,89956.0,0.055551]
[1731811749315,0.13251563,89964.0,89962.0,0.055548]
[1731811749615,0.18721389,89968.0,89959.0,0.055549]
[1731811749920,0.05469826,89968.0,89959.0,0.055549]
[1731811750313,0.05469826,89968.0,89960.0,0.013814]
[1731811750510,0.05469826,89968.0,89959.0,0.055549]
[1731811750511,0.05469826,89968.0,89961.0,0.013814]
[1731811750821,0.05469826,89968.0,89962.0,0.013814]
[1731811751020,0.05469826,89968.0,89959.0,0.055549]
[1731811751215,0.05469826,89968.0,89960.0,0.01367549]
[1731811751420,0.055546,89965.0,89961.0,0.01367549]
[1731811751714,0.055543,89970.0,89964.0,0.055546]
[1731811751913,0.0016678,89975.0,89965.0,0.04490721]
[1731811752123,0.055544,89968.0,89965.0,0.04490721]
[1731811752306,0.0016678,89975.0,89965.0,0.0312]
[1731811752507,0.055545,89967.0,89965.0,0.0312]
[1731811756014,0.055545,89967.0,89966.0,0.01370366]
[1731811756323,0.055541,89973.0,89966.0,0.01370366]
[1731811756513,0.055541,89973.0,89970.0,0.055543]
[1731811756908,0.055541,89973.0,89966.0,0.01370366]
[1731811757110,0.0016678,89975.0,89974.0,0.055541]
[1731811757314,0.0016678,89975.0,89974.0,0.06924466]
[1731811757621,0.0016678,89975.0,89974.0,0.18039343]
[1731811758025,0.0016678,89975.0,89974.0,0.54119343]
[1731811760124,0.0016678,89975.0,89974.0,0.52748977]
[1731811760511,0.0016678,89975.0,89974.0,0.47194877]
[1731811760834,0.055545,89966.0,89965.0,0.086746]
[1731811761130,0.055545,89966.0,89965.0,0.01345295]
[1731811761328,0.055549,89960.0,89959.0,0.055549]
[1731811761919,0.3608,89968.0,89956.0,0.0304]
[1731811762113,0.055552,89955.0,89954.0,0.0317]
[1731811762511,0.055552,89955.0,89945.0,0.0304]
[1731811762512,0.055558,89946.0,89945.0,0.0304]
[1731811762711,0.055558,89946.0,89944.0,0.00166762]
[1731811763116,0.055558,89946.0,89945.0,0.11116731]
[1731811765026,0.055554,89952.0,89945.0,0.11116731]
[1731811765322,0.055552,89956.0,89954.0,0.055553]
[1731811765524,0.13251563,89974.0,89955.0,0.3931]
[1731811765730,0.0016678,89975.0,89959.0,0.11864654]
[1731811765921,0.055546,89965.0,89963.0,0.055547]
[1731811766526,0.055546,89965.0,89964.0,0.11116669]
[1731811767415,0.055544,89969.0,89968.0,0.055543]
[1731811768123,0.055544,89969.0,89968.0,0.16669301]
[1731811768619,0.05782663,89975.0,89968.0,0.11115001]
[1731811768819,0.05782663,89975.0,89970.0,0.055543]
[1731811769019,0.0016678,89975.0,89973.0,0.055541]
[1731811769228,0.0016678,89975.0,89974.0,0.0322]
[1731811769815,0.0016678,89975.0,89974.0,0.14335001]
[1731811772319,0.0016678,89975.0,89974.0,0.15692047]
[1731811774031,0.0572078,89975.0,89974.0,0.15692047]
[1731811775337,0.0572078,89975.0,89974.0,0.12472047]
[1731811777126,0.0572078,89975.0,89948.0,0.26585374]
[1731811777127,0.97906456,89975.0,89948.0,0.26585374]
[1731811777330,0.05555,89959.0,89949.0,0.01348727]
[1731811777625,0.055555,89950.0,89949.0,0.01348727]
[1731811778225,0.055557,89948.0,89941.0,0.00012976]
[1731811778532,0.055559,89945.0,89942.0,0.11116793]
[1731811779125,0.055559,89945.0,89943.0,0.26585374]
[1731811779429,0.055559,89945.0,89942.0,0.26585374]
[1731811779830,0.055559,89945.0,89942.0,0.37703341]
[1731811780027,0.05556,89943.0,89942.0,0.37703341]
[1731811780223,0.05556,89943.0,89942.0,0.11117967]
[1731811780837,0.05556,89943.0,89941.0,0.00012976]
[1731811781133,0.05556,89943.0,89942.0,0.01357186]
[1731811784138,0.05556,89943.0,89941.0,0.00012976]
[1731811786627,0.05556,89943.0,89942.0,0.01365288]
[1731811787531,0.05556,89943.0,89941.0,0.00012976]
[1731811792026,0.41636,89943.0,89941.0,0.00012976]
[1731811795143,0.05556,89943.0,89941.0,0.00012976]
[1731811799342,0.3608,89942.0,89941.0,0.00012976]
[1731811803341,0.41512459,89942.0,89941.0,0.00012976]
[1731811803860,0.16607415,89966.0,89964.0,0.055547]
[1731811804057,0.00166769,89970.0,89965.0,0.0637]
[1731811804250,0.00166769,89970.0,89967.0,0.19928691]
[1731811804447,0.00166769,89970.0,89965.0,0.0637]
[1731811804448,0.00166769,89970.0,89968.0,0.19928691]
[1731811804647,0.055545,89967.0,89966.0,0.19932596]
[1731811804952,0.055545,89967.0,89965.0,0.0637]
[1731811805159,0.11864654,89969.0,89959.0,0.19932596]
[1731811805454,0.11864654,89969.0,89950.0,0.33349482]
[1731811805455,0.055551,89958.0,89956.0,0.19932596]
[1731811805668,0.055551,89958.0,89954.0,0.26585374]
[1731811805669,0.055552,89955.0,89954.0,0.1994505]
[1731811805966,0.055555,89951.0,89950.0,0.00166744]
[1731811807061,0.3608,89955.0,89950.0,0.00166744]
[1731811807363,0.055554,89953.0,89950.0,0.00166744]
[1731811808256,0.055554,89953.0,89950.0,0.20111794]
[1731811809255,0.055554,89952.0,89950.0,0.00166744]
[1731811810351,0.16607415,89954.0,89950.0,0.00166744]
[1731811810559,0.27698076,89955.0,89950.0,0.00166744]
[1731811810768,0.055553,89954.0,89950.0,0.00166744]
[1731811811068,0.05535461,89955.0,89950.0,0.00166744]
[1731811811069,0.3608,89951.0,89950.0,0.00166744]
[1731811811660,0.41483862,89951.0,89950.0,0.00166744]